bitfinex-derivatives/quotes_SOLF0:USTF0_20260306
["timestamp","ask_amount","ask_price","bid_price","bid_amount"]
[1772786236735,4.11911979,88.468,88.421,0.25200182]
[1772786238838,3.885266,88.464,88.421,0.25200182]
[1772786239836,3.885266,88.459,88.409,0.2672342]
[1772786240035,3.885266,88.457,88.409,0.2672342]
[1772786240235,3.885266,88.455,88.409,0.2672342]
[1772786240437,3.885266,88.45,88.409,0.2672342]
[1772786240839,3.885266,88.45,88.411,0.23566765]
[1772786244042,3.885266,88.45,88.42,2.97311586]
[1772786247146,10.172,88.468,88.42,2.97311586]
[1772786247345,8.99759252,88.467,88.43,2.97311586]
[1772786247644,8.99759252,88.466,88.43,2.97311586]
[1772786247843,10.171,88.475,88.43,2.97311586]
[1772786248145,10.49434239,88.486,88.43,2.97311586]
[1772786248146,10.172,88.473,88.43,2.97311586]
[1772786248445,8.9979721,88.472,88.43,2.97311586]
[1772786248743,8.9979721,88.471,88.43,2.97311586]
[1772786248938,8.9979721,88.47,88.443,0.07128379]
[1772786249139,8.9979721,88.469,88.443,0.07128379]
[1772786249334,8.9979721,88.468,88.443,0.07128379]
[1772786249542,8.9979721,88.467,88.443,0.07128379]
[1772786249742,8.9979721,88.466,88.443,0.07128379]
[1772786249942,10.172,88.473,88.443,0.07128379]
[1772786250140,8.99462732,88.472,88.443,0.07128379]
[1772786250443,8.99462732,88.471,88.443,0.07128379]
[1772786250644,8.99462732,88.47,88.443,0.07128379]
[1772786250846,8.99462732,88.469,88.443,0.07128379]
[1772786251042,8.99462732,88.468,88.443,0.07128379]
[1772786251242,10.173,88.465,88.42,2.97311586]
[1772786251442,10.173,88.465,88.41,2.97311586]
[1772786251443,8.99462732,88.464,88.41,2.97311586]
[1772786251745,8.99462732,88.463,88.41,2.97311586]
[1772786251943,10.173,88.46,88.411,10.179]
[1772786252144,8.99462732,88.459,88.411,10.179]
[1772786252344,8.99462732,88.458,88.411,10.179]
[1772786252646,8.99462732,88.457,88.411,10.179]
[1772786252945,0.08124464,88.444,88.411,10.179]
[1772786253840,0.08124464,88.444,88.41,2.97311586]
[1772786254952,0.08124464,88.444,88.39,2.97311586]
[1772786255149,8.99027054,88.443,88.39,2.97311586]
[1772786255446,8.99027054,88.442,88.39,2.97311586]
[1772786255652,2.97311586,88.45,88.39,2.97311586]
[1772786255851,0.08122949,88.425,88.39,2.97311586]
[1772786257151,0.08122949,88.425,88.4,2.97311586]
[1772786257643,13.14711586,88.45,88.4,2.97311586]
[1772786257848,10.175,88.446,88.4,2.97311586]
[1772786258151,0.07793168,88.421,88.4,2.97311586]
[1772786265750,0.07793168,88.421,88.39,2.97311586]
[1772786265955,0.07793168,88.421,88.37,2.97311586]
[1772786266156,2.97311586,88.42,88.37,2.97311586]
[1772786266656,0.07466261,88.404,88.37,2.97311586]
[1772786276567,0.07466261,88.404,88.38,2.97311586]
[1772786276966,10.177,88.424,88.38,2.97311586]
[1772786277161,2.97311586,88.42,88.36,2.97311586]
[1772786277365,0.07686186,88.401,88.36,2.97311586]
[1772786278061,0.07686186,88.401,88.37,2.97311586]
[1772786278563,2.97311586,88.42,88.37,2.97311586]
[1772786278767,10.178,88.417,88.37,2.97311586]
[1772786279066,0.0731029,88.394,88.37,2.97311586]
[1772786279669,0.0731029,88.394,88.355,10.185]
[1772786279869,0.0731029,88.394,88.37,2.97311586]
[1772786281274,0.0731029,88.394,88.36,2.97311586]
[1772786281473,0.0731029,88.394,88.34,2.97311586]
[1772786281673,2.97311586,88.4,88.34,2.97311586]
[1772786281873,9.51786214,88.453,88.34,2.97311586]
[1772786281874,2.97311586,88.39,88.34,2.97311586]
[1772786282371,2.97311586,88.39,88.292,1.0]
[1772786282576,0.07451019,88.374,88.33,2.97311586]
[1772786283270,2.97311586,88.39,88.33,2.97311586]
[1772786283478,0.07663412,88.361,88.33,2.97311586]
[1772786284471,0.07663412,88.361,88.32,2.97311586]
[1772786284672,0.07663412,88.361,88.31,2.97311586]
[1772786284976,2.97311586,88.37,88.31,2.97311586]
[1772786285372,0.07721,88.344,88.276,11.46629626]
[1772786285573,0.07721,88.344,88.3,2.97311586]
[1772786285981,2.97311586,88.35,88.3,2.97311586]
[1772786286477,0.07320553,88.331,88.3,2.97311586]
[1772786286685,0.07320553,88.331,88.28,2.97311586]
[1772786287178,2.97311586,88.33,88.28,2.97311586]
[1772786287571,0.08048076,88.314,88.28,2.97311586]
[1772786287876,0.08048076,88.314,88.27,2.97348626]
[1772786288074,0.08048076,88.314,88.27,0.0003704]
[1772786289186,2.97311586,88.31,88.27,0.0003704]
[1772786289785,10.19,88.309,88.27,0.0003704]
[1772786290587,0.08048076,88.314,88.27,2.97348626]
[1772786291085,0.08048076,88.314,88.27,0.0003704]
[1772786291988,0.08048076,88.314,88.27,2.97348626]
[1772786292590,10.19,88.312,88.27,0.0003704]
[1772786293689,10.19,88.312,88.27,2.97348626]
[1772786293991,10.19,88.312,88.27,0.0003704]
[1772786294193,10.19,88.312,88.27,2.97348626]
[1772786296694,10.191,88.303,88.27,0.0003704]
[1772786297697,0.07404924,88.295,88.27,0.0003704]
[1772786299997,0.07404924,88.295,88.27,2.97348626]
[1772786300499,0.07404924,88.295,88.27,2.98431783]
[1772786300997,0.07404924,88.295,88.28,2.98394743]
[1772786301892,0.07404924,88.295,88.27,2.98431783]
[1772786302899,0.07404924,88.295,88.27,0.0003704]
[1772786303094,0.07404924,88.295,88.27,2.98431783]
[1772786303300,10.187,88.336,88.29,2.98394743]
[1772786303493,10.45459207,88.381,88.27,0.0003704]
[1772786303494,2.98394743,88.33,88.27,2.98431783]
[1772786304188,2.98394743,88.32,88.27,2.98431783]
[1772786304797,10.19,88.313,88.27,2.98431783]
[1772786305597,10.189,88.323,88.28,2.98394743]
[1772786305791,2.98394743,88.34,88.29,2.98394743]
[1772786306595,2.98394743,88.34,88.28,2.98394743]
[1772786306802,10.188,88.332,88.28,2.98394743]
[1772786307896,10.45459207,88.387,88.27,0.0003704]
[1772786307897,10.187,88.343,88.29,2.98394743]
[1772786309197,20.364,88.387,88.31,2.98394743]
[1772786309198,10.185,88.354,88.31,2.98394743]
[1772786309399,2.98394743,88.37,88.31,2.98394743]
[1772786309598,2.98394743,88.37,88.32,2.98394743]
[1772786310404,2.98394743,88.38,88.32,2.98394743]
[1772786310599,2.98394743,88.38,88.27,0.0003704]
[1772786310600,2.98394743,88.38,88.33,2.98394743]
[1772786310801,2.98394743,88.39,88.33,2.98394743]
[1772786311001,2.98394743,88.39,88.341,0.07163448]
[1772786311807,10.183,88.373,88.341,0.07163448]
[1772786313597,2.98394743,88.38,88.341,0.07163448]
[1772786314104,2.98394743,88.39,88.33,2.98394743]
[1772786314705,2.98394743,88.38,88.33,2.98394743]
[1772786314904,10.184,88.37,88.33,2.98394743]
[1772786317210,10.184,88.37,88.341,0.07158125]
[1772786319610,4.11911979,88.367,88.32,2.98394743]
[1772786319906,2.98394743,88.35,88.254,1.0]
[1772786320104,4.08332917,88.349,88.3,2.98394743]
[1772786321107,0.0759093,88.333,88.301,0.27086396]
[1772786325110,0.0759093,88.333,88.29,2.98394743]
[1772786325111,3.87538442,88.331,88.29,2.98394743]
[1772786325308,3.87538442,88.331,88.291,0.27647981]
[1772786325508,0.0759093,88.333,88.29,2.98394743]
[1772786325713,2.98394743,88.34,88.29,2.98394743]
[1772786326221,0.07873147,88.32,88.29,2.98394743]
[1772786330710,0.07873147,88.32,88.28,2.98394743]
[1772786337015,10.189,88.319,88.28,2.98394743]
[1772786337619,0.07873147,88.32,88.28,2.98394743]
[1772786338117,0.07873147,88.32,88.23,1.0]
[1772786338118,0.07873147,88.32,88.29,2.98394743]
[1772786340123,0.07873147,88.32,88.3,2.98394743]
[1772786340323,2.98394743,88.37,88.31,2.98394743]
[1772786340513,8.92716573,88.369,88.31,2.98394743]
[1772786340820,2.98394743,88.36,88.31,2.98394743]
[1772786341015,10.186,88.348,88.31,2.98394743]
[1772786341423,2.98394743,88.35,88.3,2.98394743]
[1772786341619,2.98394743,88.34,88.28,2.98394743]
[1772786341814,2.98394743,88.34,88.225,20.401]
[1772786341815,2.98394743,88.34,88.29,2.98394743]
[1772786342220,9.49738042,88.367,88.29,2.98394743]
[1772786342221,2.98394743,88.35,88.316,0.08041268]
[1772786342823,20.368,88.368,88.316,0.08041268]
[1772786343027,2.98394743,88.35,88.316,0.08041268]
[1772786343228,8.92848803,88.349,88.29,2.98394743]
[1772786343526,2.98394743,88.35,88.29,2.98394743]
[1772786344128,10.188,88.328,88.29,2.98394743]
[1772786346727,0.07424604,88.318,88.29,2.98394743]
[1772786355833,0.07424604,88.318,88.28,2.98394743]
[1772786356028,0.07424604,88.318,88.29,2.98394743]
[1772786358732,0.07424604,88.318,88.29,13.17694743]
[1772786359737,2.98394743,88.36,88.3,2.98394743]
[1772786359937,2.98394743,88.35,88.29,2.98394743]
[1772786360137,8.95215457,88.349,88.3,2.98394743]
[1772786360432,8.95215457,88.348,88.3,2.98149041]
[1772786360638,10.185,88.354,88.303,10.191]
[1772786360837,20.948716,88.394,88.271,1.0]
[1772786360838,8.95415291,88.353,88.31,2.98149041]
[1772786361039,2.98149041,88.37,88.31,2.98149041]
[1772786361333,8.95778312,88.369,88.32,2.98149041]
[1772786361537,8.95778312,88.368,88.32,2.98149041]
[1772786361832,2.98149041,88.36,88.31,2.98149041]
[1772786362031,8.95778312,88.359,88.31,2.98149041]
[1772786362237,2.98149041,88.34,88.29,2.98149041]
[1772786362439,2.98149041,88.34,88.272,1.0]
[1772786362635,2.98149041,88.34,88.29,2.98149041]
[1772786363539,2.98149041,88.35,88.29,2.98149041]
[1772786363837,10.187,88.34,88.306,0.07249013]
[1772786365133,10.186,88.349,88.306,0.07249013]
[1772786365334,2.98149041,88.36,88.306,0.07249013]
[1772786365538,8.96881804,88.359,88.306,0.07249013]
[1772786365739,2.98149041,88.34,88.306,0.07249013]
[1772786365931,2.98149041,88.34,88.29,2.98149041]
[1772786366439,10.187,88.338,88.29,2.98149041]
[1772786367541,10.187,88.338,88.305,0.07173051]
[1772786368642,8.96803341,88.337,88.305,0.07173051]
[1772786368843,8.96803341,88.336,88.305,0.07173051]
[1772786369039,8.96803341,88.335,88.305,0.07173051]
[1772786369243,2.98149041,88.34,88.305,0.07173051]
[1772786369444,8.96860644,88.339,88.305,0.07173051]
[1772786369750,19.15560644,88.338,88.305,0.07173051]
[1772786370045,8.96860644,88.337,88.305,0.07173051]
[1772786370245,8.96860644,88.336,88.305,0.07173051]
[1772786370443,8.96860644,88.335,88.305,0.07173051]
[1772786370744,2.98149041,88.34,88.305,0.07173051]
[1772786371043,8.95622596,88.339,88.305,0.07173051]
[1772786371244,8.95622596,88.338,88.305,0.07173051]
[1772786371442,8.95622596,88.337,88.305,0.07173051]
[1772786371638,10.186,88.347,88.305,0.07173051]
[1772786372148,10.185,88.355,88.305,0.07173051]
[1772786372446,8.95715393,88.354,88.305,0.07173051]
[1772786372647,8.95715393,88.353,88.3,2.98149041]
[1772786372847,2.98149041,88.36,88.3,2.98149041]
[1772786373045,8.9565522,88.359,88.3,2.98149041]
[1772786373245,8.9565522,88.358,88.3,2.98149041]
[1772786373442,8.9565522,88.357,88.3,2.98149041]
[1772786373651,8.9565522,88.356,88.3,2.98149041]
[1772786373844,10.186,88.352,88.3,2.98149041]
[1772786374041,8.9565522,88.351,88.32,0.07290336]
[1772786374242,10.186,88.352,88.32,0.07290336]
[1772786374445,8.95538416,88.351,88.32,0.07290336]
[1772786374638,10.186,88.352,88.32,0.07290336]
[1772786374838,8.95542544,88.351,88.32,0.07290336]
[1772786375147,10.186,88.352,88.32,0.07290336]
[1772786375342,8.95500907,88.351,88.32,0.07290336]
[1772786375544,10.186,88.352,88.32,0.07290336]
[1772786376949,10.185,88.36,88.32,0.07290336]
[1772786377150,8.95499481,88.359,88.32,3.05439377]
[1772786377360,10.185,88.36,88.32,3.05439377]
[1772786378154,10.185,88.36,88.32,0.07290336]
[1772786381557,8.95489788,88.359,88.32,0.07290336]
[1772786381855,8.95489788,88.358,88.32,0.07290336]
[1772786382060,10.185,88.36,88.32,0.07290336]
[1772786382061,8.95489788,88.357,88.32,0.07290336]
[1772786382263,8.95489788,88.356,88.32,0.07290336]
[1772786382464,8.95489788,88.355,88.32,0.07290336]
[1772786382762,10.185,88.36,88.32,0.07290336]
[1772786383063,10.185,88.358,88.32,0.07290336]
[1772786383260,2.98149041,88.38,88.33,2.98149041]
[1772786383460,8.95750149,88.379,88.34,2.98149041]
[1772786383660,8.95750149,88.378,88.34,2.98149041]
[1772786383860,8.95750149,88.377,88.34,2.98149041]
[1772786384161,8.95750149,88.376,88.35,0.0713669]
[1772786384363,8.95750149,88.375,88.35,0.0713669]
[1772786384560,8.95750149,88.374,88.35,0.0713669]
[1772786384760,8.95750149,88.373,88.35,0.0713669]
[1772786385061,10.182,88.385,88.35,0.0713669]
[1772786385261,8.9528463,88.384,88.35,0.0713669]
[1772786385462,8.9528463,88.383,88.35,0.0713669]
[1772786385664,8.9528463,88.382,88.35,0.0713669]
[1772786385962,8.9528463,88.381,88.35,0.0713669]
[1772786386159,8.9528463,88.38,88.35,0.0713669]
[1772786386365,8.9528463,88.379,88.35,0.0713669]
[1772786386665,2.98149041,88.39,88.35,0.0713669]
[1772786386666,8.9528463,88.378,88.35,0.0713669]
[1772786386964,8.9528463,88.377,88.35,0.0713669]
[1772786387164,8.9528463,88.376,88.35,0.0713669]
[1772786387464,10.182,88.383,88.35,0.0713669]
[1772786387665,2.98149041,88.39,88.35,0.0713669]
[1772786387666,10.182,88.38,88.35,0.0713669]
[1772786387860,8.94779136,88.379,88.35,0.0713669]
[1772786388057,8.94779136,88.378,88.35,0.0713669]
[1772786388260,8.94779136,88.377,88.35,0.0713669]
[1772786388466,10.182,88.38,88.35,0.0713669]
[1772786388764,8.94625183,88.379,88.35,0.0713669]
[1772786388964,8.94625183,88.378,88.35,0.0713669]
[1772786389163,8.94625183,88.377,88.35,0.0713669]
[1772786389366,10.182,88.38,88.35,0.0713669]
[1772786389566,8.94547459,88.379,88.35,0.0713669]
[1772786389766,8.94547459,88.378,88.35,0.0713669]
[1772786389967,8.94547459,88.377,88.35,0.0713669]
[1772786390160,2.98149041,88.39,88.35,0.0713669]
[1772786390161,10.183,88.376,88.35,0.0713669]
[1772786390562,10.181,88.394,88.35,3.05285731]
[1772786390760,8.94516324,88.393,88.35,3.05285731]
[1772786390968,8.94516324,88.392,88.35,0.0713669]
[1772786391171,8.94516324,88.391,88.34,2.98149041]
[1772786391371,10.182,88.386,88.34,2.98149041]
[1772786391665,8.94516324,88.385,88.34,2.98149041]
[1772786391969,8.94516324,88.384,88.34,2.98149041]
[1772786392170,8.94516324,88.383,88.34,2.98149041]
[1772786392365,2.98149041,88.39,88.34,2.98149041]
[1772786392667,8.94007698,88.389,88.34,2.98149041]
[1772786392869,10.182,88.383,88.34,2.98149041]
[1772786393370,10.182,88.383,88.356,0.07384415]
[1772786394068,2.98149041,88.38,88.356,0.07384415]
[1772786394266,2.98149041,88.38,88.33,2.98149041]
[1772786394461,0.07253972,88.378,88.33,2.98149041]
[1772786395265,0.07253972,88.378,88.34,2.98149041]
[1772786395771,9.55603533,88.399,88.34,2.98149041]
[1772786395962,10.183,88.373,88.33,2.98149041]
[1772786396167,0.07246872,88.368,88.33,2.98149041]
[1772786396762,10.184,88.367,88.33,2.98149041]
[1772786397172,0.07246872,88.368,88.33,2.98149041]
[1772786397771,0.07246872,88.368,88.34,2.98149041]
[1772786398176,10.183,88.375,88.33,2.98149041]
[1772786398772,0.07574736,88.363,88.33,2.98149041]
[1772786401670,0.07574736,88.363,88.34,2.98149041]
[1772786401870,2.98149041,88.42,88.359,10.185]
[1772786402171,13.47941416,88.44,88.38,2.98149041]
[1772786402472,13.47941416,88.44,88.305,158.532]
[1772786402473,10.176,88.435,88.39,2.98149041]
[1772786402674,10.49792375,88.451,88.305,158.532]
[1772786402675,2.98149041,88.46,88.4,2.98149041]
[1772786402971,8.93822959,88.459,88.341,20.374]
[1772786403273,2.98149041,88.44,88.39,2.98149041]
[1772786403470,2.98149041,88.44,88.391,10.181]
[1772786403664,2.98149041,88.45,88.391,10.181]
[1772786403866,2.98149041,88.45,88.4,2.98149041]
[1772786404063,2.98149041,88.46,88.4,2.98149041]
[1772786404268,2.98149041,88.46,88.412,0.07303031]
[1772786404975,2.98149041,88.45,88.412,0.07303031]
[1772786405375,2.98149041,88.47,88.42,2.98149041]
[1772786405668,2.98149041,88.47,88.358,11.04597206]
[1772786405669,10.49792375,88.515,88.44,2.98149041]
[1772786405874,158.075,88.561,88.359,1.0]
[1772786405875,2.98149041,88.51,88.46,2.98149041]
[1772786406275,2.98149041,88.51,88.45,2.98149041]
[1772786406472,8.89745074,88.536,88.372,20.367]
[1772786406473,10.169,88.498,88.44,2.98149041]
[1772786406672,10.169,88.498,88.476,0.07167796]
[1772786406866,10.169,88.498,88.44,2.98149041]
[1772786407670,10.169,88.498,88.45,2.98149041]
[1772786407876,2.98149041,88.5,88.45,2.98149041]
[1772786408174,10.168,88.509,88.45,2.98149041]
[1772786409674,0.07149725,88.488,88.45,2.98149041]
[1772786416082,0.07149725,88.488,88.429,10.177]
[1772786416375,0.07149725,88.488,88.45,2.98149041]
[1772786416576,13.15049041,88.5,88.45,2.98149041]
[1772786416881,2.98149041,88.49,88.44,2.98149041]
[1772786417081,10.17,88.491,88.45,2.98149041]
[1772786417779,10.168,88.501,88.46,2.98149041]
[1772786417976,0.07306111,88.479,88.46,2.98149041]
[1772786418175,0.07306111,88.479,88.45,2.98149041]
[1772786418684,10.168,88.501,88.45,2.98149041]
[1772786419076,0.07248638,88.473,88.45,2.98149041]
[1772786420580,0.07248638,88.473,88.45,2.97120583]
[1772786420981,0.07248638,88.473,88.436,10.176]
[1772786421180,0.07248638,88.473,88.45,2.97120583]
[1772786421983,0.07248638,88.473,88.436,10.176]
[1772786422184,0.07248638,88.473,88.45,2.97120583]
[1772786423880,0.07248638,88.473,88.44,2.97120583]
[1772786424080,0.07248638,88.473,88.45,2.97120583]
[1772786424881,10.49792375,88.567,88.46,2.97120583]
[1772786425184,2.97120583,88.53,88.47,2.97120583]
[1772786426588,2.97120583,88.52,88.47,2.97120583]
[1772786426787,10.166,88.519,88.47,2.97120583]
[1772786427287,13.13620583,88.53,88.48,2.97120583]
[1772786427686,10.165,88.53,88.48,2.97120583]
[1772786428182,10.165,88.53,88.496,0.07509304]
[1772786429482,2.97120583,88.54,88.496,0.07509304]
[1772786429684,8.81567718,88.587,88.496,0.07509304]
[1772786429882,2.97120583,88.56,88.51,2.97120583]
[1772786430585,2.97120583,88.56,88.438,158.294]
[1772786430586,2.97120583,88.57,88.52,2.97120583]
[1772786430787,10.163,88.551,88.431,158.305]
[1772786430986,10.163,88.551,88.5,2.97120583]
[1772786431292,2.97120583,88.55,88.5,2.97120583]
[1772786431492,11.52309358,88.596,88.51,2.97120583]
[1772786431493,2.97120583,88.56,88.51,2.97120583]
[1772786432293,10.163,88.549,88.491,10.169]
[1772786432592,10.163,88.549,88.526,0.07172473]
[1772786433188,10.162,88.558,88.526,0.07172473]
[1772786433590,2.97120583,88.57,88.526,0.07172473]
[1772786434795,4.08332917,88.566,88.526,0.07172473]
[1772786435299,4.08332917,88.559,88.526,0.07172473]
[1772786435796,4.08332917,88.559,88.51,2.97120583]
[1772786436093,2.97120583,88.56,88.5,2.97120583]
[1772786436094,4.08332917,88.552,88.5,2.97120583]
[1772786436397,4.08332917,88.552,88.51,2.97120583]
[1772786437196,4.08332917,88.552,88.522,0.07174463]
[1772786437797,4.08332917,88.548,88.522,0.07174463]
[1772786438804,4.08332917,88.546,88.522,0.07174463]
[1772786439207,4.08332917,88.559,88.522,0.07174463]
[1772786439398,14.24532917,88.557,88.522,0.07174463]
[1772786439603,4.08332917,88.556,88.51,2.97120583]
[1772786439904,4.08332917,88.556,88.441,20.351]
[1772786440094,4.08332917,88.556,88.531,0.07600076]
[1772786440500,4.08332917,88.556,88.51,2.97120583]
[1772786440696,4.08332917,88.552,88.51,2.97120583]
[1772786442209,4.04751357,88.549,88.5,2.97120583]
[1772786442403,4.04751357,88.549,88.49,2.97120583]
[1772786442599,4.04751357,88.539,88.5,2.97120583]
[1772786442801,4.04751357,88.537,88.5,2.97120583]
[1772786443001,4.04751357,88.537,88.49,2.97120583]
[1772786443401,4.04751357,88.537,88.491,0.44237959]
[1772786443602,0.07300362,88.522,88.501,0.44237959]
[1772786444603,0.07300362,88.522,88.5,2.97120583]
[1772786444812,0.07300362,88.522,88.49,2.97120583]
[1772786445106,0.07300362,88.522,88.491,0.44237959]
[1772786445311,0.07300362,88.522,88.5,2.97120583]
[1772786445510,0.07300362,88.522,88.491,0.44237959]
[1772786446420,0.07300362,88.522,88.47,2.97120583]
[1772786446421,3.86269847,88.522,88.47,2.97120583]
[1772786446717,2.97120583,88.52,88.471,0.44283859]
[1772786446916,3.78969485,88.519,88.471,0.44283859]
[1772786447316,0.07298169,88.504,88.473,0.44283859]
[1772786448614,0.07298169,88.504,88.48,2.97120583]
[1772786449016,0.07298169,88.504,88.473,0.44283859]
[1772786451519,0.07298169,88.504,88.48,2.97120583]
[1772786452420,0.07298169,88.504,88.473,0.44283859]
[1772786452917,0.07298169,88.504,88.42,1.0]
[1772786452918,0.07298169,88.504,88.48,2.97120583]
[1772786453118,0.07298169,88.504,88.42,1.0]
[1772786453119,0.07298169,88.504,88.481,0.5020254]
[1772786453525,3.76010145,88.526,88.481,0.5020254]
[1772786454612,3.76010145,88.526,88.48,2.97120583]
[1772786455319,0.07398801,88.512,88.48,2.97120583]
[1772786455721,0.07398801,88.512,88.48,3.49205905]
[1772786458425,0.07398801,88.512,88.481,0.51427382]
[1772786461818,3.96263619,88.54,88.491,0.51716792]
[1772786462023,3.96263619,88.54,88.501,0.44317991]
[1772786462927,3.96263619,88.538,88.491,0.44317991]
[1772786464023,3.96263619,88.534,88.506,0.07329708]
[1772786464927,3.96263619,88.532,88.506,0.07329708]
[1772786466527,4.03383777,88.528,88.474,0.47403812]
[1772786466731,4.03383777,88.528,88.48,2.97120583]
[1772786466928,4.03383777,88.528,88.474,0.47403812]
[1772786467230,3.96263619,88.528,88.474,0.47403812]
[1772786467931,3.96263619,88.515,88.474,0.47403812]
[1772786469033,3.96263619,88.513,88.47,2.97120583]
[1772786469332,3.96263619,88.513,88.462,0.55539681]
[1772786469531,0.07349303,88.5,88.471,0.55273004]
[1772786469827,0.07349303,88.5,88.48,2.97120583]
[1772786470626,0.07349303,88.5,88.471,0.55273004]
[1772786480533,0.07349303,88.5,88.417,28.07206948]
[1772786480534,3.96263619,88.499,88.45,3.50905123]
[1772786481738,3.96263619,88.499,88.46,2.97120583]
[1772786481940,3.96263619,88.499,88.461,0.54569694]
[1772786482441,3.96263619,88.499,88.47,2.97018619]
[1772786482747,0.0737298,88.489,88.47,2.97018619]
[1772786488651,0.0737298,88.489,88.461,0.54569694]
[1772786488845,0.0737298,88.489,88.471,0.55668619]
[1772786489451,3.96263619,88.509,88.471,0.55668619]
[1772786490454,10.168,88.506,88.471,0.55668619]
[1772786490649,0.07296245,88.499,88.471,0.55668619]
[1772786493549,3.78724037,88.499,88.461,0.75726367]
[1772786494048,3.71427792,88.497,88.461,0.75726367]
[1772786495152,3.71427792,88.489,88.434,0.7235141]
[1772786495357,3.71427792,88.459,88.408,0.7235141]
[1772786495857,3.71427792,88.449,88.408,0.7235141]
[1772786499856,3.71427792,88.447,88.395,0.68480314]
[1772786500056,3.71427792,88.439,88.395,0.68480314]
[1772786500655,3.71427792,88.439,88.4,2.97018619]
[1772786501557,0.07344417,88.428,88.4,2.97018619]
[1772786504858,0.07344417,88.428,88.401,0.69777997]
[1772786507764,3.71427792,88.453,88.411,0.5794404]
[1772786508357,3.71427792,88.453,88.41,2.97018619]
[1772786508554,3.72358602,88.449,88.4,3.54962659]
[1772786509163,3.72358602,88.449,88.416,0.07437862]
[1772786509860,3.75869363,88.447,88.416,0.07437862]
[1772786511364,3.75869363,88.459,88.416,0.58360381]
[1772786511761,3.75814993,88.456,88.416,0.07437862]
[1772786511961,3.75814993,88.456,88.405,0.51031259]
[1772786512258,3.75814993,88.456,88.427,0.07295015]
[1772786512865,3.75814993,88.453,88.427,0.07295015]
[1772786513463,3.7175301,88.449,88.4,2.97018619]
[1772786514758,3.7175301,88.446,88.4,2.97018619]
[1772786515461,0.07200792,88.432,88.4,2.97018619]
[1772786516059,0.07200792,88.432,88.401,0.54825862]
[1772786516266,0.07200792,88.432,88.41,2.97018619]
[1772786517865,0.07200792,88.432,88.401,0.54825862]
[1772786519265,0.07200792,88.432,88.403,0.55284198]
[1772786519470,0.07200792,88.432,88.41,2.97018619]
[1772786520370,0.07200792,88.432,88.403,0.55284198]
[1772786520571,0.07200792,88.432,88.392,0.6015646]
[1772786520572,3.71427792,88.431,88.392,0.6015646]
[1772786520767,3.71427792,88.431,88.38,3.57175079]
[1772786521373,3.71427792,88.43,88.38,3.57175079]
[1772786521563,4.0092121,88.429,88.38,2.97018619]
[1772786521971,4.0092121,88.419,88.37,2.97018619]
[1772786522270,4.0092121,88.409,88.36,2.97018619]
[1772786524770,4.0092121,88.407,88.36,2.97018619]
[1772786524975,4.0092121,88.407,88.347,10.76960775]
[1772786525173,4.0092121,88.407,88.35,2.97018619]
[1772786525374,4.0092121,88.391,88.347,0.58360775]
[1772786525574,4.0092121,88.391,88.35,2.97018619]
[1772786526375,4.0092121,88.403,88.37,2.97018619]
[1772786526981,4.0092121,88.403,88.36,2.97018619]
[1772786527479,4.0092121,88.401,88.351,0.58413968]
[1772786528078,0.07216617,88.385,88.351,0.58413968]
[1772786528776,0.07216617,88.385,88.35,2.97018619]
[1772786528777,4.0092121,88.384,88.34,2.97018619]
[1772786530770,4.0092121,88.384,88.341,0.75293429]
[1772786530974,4.0092121,88.384,88.35,2.97018619]
[1772786532776,4.0092121,88.384,88.36,2.97018619]
[1772786533674,4.0092121,88.384,88.343,0.73625119]
[1772786533872,4.0092121,88.384,88.35,2.97018619]
[1772786537286,4.0092121,88.384,88.343,0.73625119]
[1772786537979,4.0092121,88.382,88.34,2.97018619]
[1772786538984,4.0092121,88.379,88.34,2.97018619]
[1772786539582,4.0092121,88.379,88.35,2.97018619]
[1772786540383,4.0092121,88.379,88.341,0.72167712]
[1772786540580,0.07191383,88.373,88.341,0.72167712]
[1772786543785,0.07191383,88.373,88.35,2.97018619]
[1772786544590,0.07191383,88.373,88.35,2.97862692]
[1772786545886,0.07191383,88.373,88.341,0.72167712]
[1772786546288,0.07191383,88.373,88.351,0.75561683]
[1772786546892,4.0092121,88.391,88.351,0.75561683]
[1772786547799,4.0092121,88.391,88.352,10.185]
[1772786547994,4.0092121,88.391,88.351,0.75561683]
[1772786548592,4.0092121,88.378,88.34,2.97862692]
[1772786548793,4.0092121,88.378,88.33,2.97862692]
[1772786549694,4.0092121,88.378,88.331,0.75727562]
[1772786549900,0.07226106,88.363,88.341,0.75727562]
[1772786550496,4.0092121,88.385,88.341,0.75727562]
[1772786551199,4.0092121,88.385,88.34,2.97862692]
[1772786551403,0.07185585,88.372,88.34,2.97862692]
[1772786553006,3.93481155,88.372,88.33,3.73590254]
[1772786553205,3.93481155,88.372,88.32,2.97862692]
[1772786553804,3.8629557,88.372,88.32,2.97862692]
[1772786554402,3.8629557,88.371,88.32,2.97862692]